bitfinex/quotes_ETHUSD_20250821
["timestamp","ask_amount","ask_price","bid_price","bid_amount"]
[1755778820015,4.261,4263.3,4262.8,0.02]
[1755778820310,0.4531,4263.2,4262.8,0.02]
[1755778820476,0.2968,4262.9,4262.8,0.02]
[1755778820909,0.7499,4262.9,4262.8,0.02]
[1755778821914,2.5529,4262.9,4262.8,0.02]
[1755778822312,2.80819,4262.9,4262.8,0.02]
[1755778822509,1.803,4262.9,4262.8,0.02]
[1755778823479,0.4531,4263.3,4262.8,0.02]
[1755778823705,6.057,4263.5,4262.8,0.02]
[1755778823908,1.804,4263.5,4262.8,0.02]
[1755778824425,1.804,4263.5,4262.9,0.0234582]
[1755778824581,1.804,4263.5,4262.8,0.02]
[1755778824892,1.804,4264.2,4262.9,0.0234582]
[1755778825086,1.804,4264.2,4262.9,0.4681]
[1755778825904,1.804,4264.2,4262.9,0.4915582]
[1755778826102,1.804,4264.2,4262.9,0.4681]
[1755778827304,1.804,4264.2,4262.9,3.4681]
[1755778827553,1.824,4264.8,4262.9,2.81390809]
[1755778827759,1.824,4264.8,4263.0,3.0]
[1755778828222,0.4531,4264.7,4263.0,3.0]
[1755778828407,0.68081,4264.7,4262.8,0.02]
[1755778828907,0.4531,4264.6,4262.8,0.02]
[1755778829107,0.1176,4263.9,4263.3,0.1176]
[1755778830604,2.2771,4264.8,4263.8,0.2874]
[1755778830814,0.02,4264.8,4263.9,0.0234527]
[1755778831132,0.02,4264.8,4264.3,0.1176]
[1755778831812,0.02,4264.8,4264.4,0.02344995]
[1755778832012,0.02,4264.8,4264.7,2.63223082]
[1755778832217,0.02,4264.8,4264.7,6.21793082]
[1755778832416,0.02,4264.8,4264.7,3.405]
[1755778833153,0.02,4264.8,4264.7,0.1176]
[1755778833359,0.02,4264.8,4264.1,1.804]
[1755778834350,0.02,4264.8,4264.1,1.805]
[1755778834721,0.02,4264.8,4264.1,0.001]
[1755778835063,0.2968,4264.2,4264.1,0.001]
[1755778836618,0.7499,4264.2,4264.1,0.001]
[1755778836819,0.2968,4264.2,4264.1,0.001]
[1755778837052,0.4531,4264.7,4264.1,0.001]
[1755778837352,0.7491,4264.2,4264.1,0.001]
[1755778837721,0.4629,4264.8,4264.1,0.001]
[1755778838875,0.4629,4264.8,4264.1,0.0244516]
[1755778839026,0.02,4264.8,4264.1,0.001]
[1755778839722,0.02,4264.8,4264.1,0.0244516]
[1755778839917,0.02,4264.8,4264.1,0.001]
[1755778840121,0.02,4264.8,4264.7,0.2853]
[1755778841525,0.02,4264.8,4264.7,6.07273082]
[1755778842343,0.02,4264.8,4264.7,10.29673082]
[1755778843226,0.02,4264.8,4264.7,10.41433082]
[1755778843829,0.02,4264.8,4264.7,8.0675]
[1755778844028,0.02,4264.8,4264.7,4.3396]
[1755778844265,0.3273,4264.8,4264.7,0.1176]
[1755778844433,0.02,4264.8,4264.7,0.1176]
[1755778844842,0.02,4264.8,4264.7,0.8455]
[1755778845078,0.02,4264.8,4264.7,0.7279]
[1755778845231,0.02,4264.8,4264.7,10.29073082]
[1755778846341,0.02,4264.8,4264.7,10.95073082]
[1755778846544,1e-08,4264.8,4264.7,17.60773082]
[1755778847165,1e-08,4264.8,4264.7,13.41773082]
[1755778847530,1e-08,4264.8,4264.7,9.31658966]
[1755778847745,1e-08,4264.8,4264.7,13.53858966]
[1755778848340,0.002,4265.7,4265.6,8.47133608]
[1755778848653,0.002,4265.7,4265.6,25.08694836]
[1755778848842,0.002,4265.7,4265.6,25.52954836]
[1755778850149,0.02,4265.8,4265.7,8.47128112]
[1755778850456,0.02,4265.8,4265.7,9.19918112]
[1755778850967,0.02,4265.8,4265.7,10.94718112]
[1755778851189,0.02,4265.8,4265.7,10.28718112]
[1755778852547,0.02,4265.8,4265.7,10.94718112]
[1755778852942,0.02,4265.8,4265.7,6.73218112]
[1755778853245,0.02,4265.8,4265.7,10.94818112]
[1755778853445,0.002,4266.6,4266.5,2.34384155]
[1755778853644,0.002,4266.6,4266.5,21.97789224]
[1755778853855,0.002,4266.6,4266.5,22.39705383]
[1755778854193,0.002,4266.6,4266.5,23.05705383]
[1755778854956,0.002,4266.6,4266.5,18.51525383]
[1755778855173,0.002,4266.6,4266.5,11.76194155]
[1755778855447,0.002,4266.6,4266.5,15.95194155]
[1755778856175,0.002,4266.6,4266.5,26.70085383]
[1755778856377,0.002,4266.6,4266.5,27.24405383]
[1755778856594,0.002,4266.6,4266.5,27.36085383]
[1755778856875,1e-08,4266.6,4266.5,29.82785383]
[1755778857075,0.002,4267.1,4266.5,29.82785383]
[1755778857076,0.002,4267.1,4266.7,8.47073168]
[1755778857306,0.002,4267.1,4266.7,12.94603168]
[1755778857610,0.002,4267.1,4267.0,2.3435669]
[1755778857815,1e-08,4267.2,4267.1,5.47051198]
[1755778857980,0.4429,4269.9,4267.9,3.0]
[1755778858180,0.4429,4269.7,4268.4,5.34274543]
[1755778858393,0.4429,4269.7,4269.6,0.1168]
[1755778858594,0.7502,4269.7,4269.6,4.3318]
[1755778858794,0.7502,4269.7,4269.6,0.1168]
[1755778859081,0.7502,4269.7,4269.6,4.3318]
[1755778860288,0.7502,4269.7,4269.6,0.1168]
[1755778860486,0.7502,4269.7,4269.4,4.211]
[1755778860690,0.4429,4269.6,4269.5,0.02342194]
[1755778860911,0.7494,4269.6,4269.5,0.02342194]
[1755778861102,0.7494,4269.6,4269.5,0.14022194]
[1755778861437,0.3073,4269.6,4269.5,0.1168]
[1755778861992,0.02,4269.8,4269.5,0.1168]
[1755778862301,0.02,4269.8,4269.7,2.34208492]
[1755778862504,0.02,4269.8,4269.7,6.57450576]
[1755778862711,0.02,4269.8,4269.7,9.55108492]
[1755778862907,0.02,4269.8,4269.7,9.83638492]
[1755778863227,0.02,4269.8,4269.7,10.93898492]
[1755778863634,0.02,4269.8,4269.7,10.49638492]
[1755778864018,0.02,4269.8,4269.7,6.28738492]
[1755778864206,0.02,4269.8,4269.7,10.49238492]
[1755778864411,0.02,4269.8,4269.7,6.00208492]
[1755778864598,0.02,4269.8,4269.7,3.0]
[1755778864796,0.02,4269.8,4269.7,7.204]
[1755778864995,0.02,4269.8,4269.7,3.0]
[1755778865222,0.7702,4269.8,4269.7,7.203]
[1755778865601,0.02,4269.8,4269.7,9.54508492]
[1755778865824,0.02,4269.8,4269.7,9.83038492]
[1755778866329,0.02,4269.8,4269.7,7.202]
[1755778867332,0.02,4269.8,4269.7,3.0]
[1755778867633,0.02,4269.8,4269.7,7.199]
[1755778867806,0.02,4269.8,4269.7,7.198]
[1755778867807,0.7954,4269.8,4269.7,7.198]
[1755778868320,0.02,4269.8,4269.7,7.198]
[1755778868834,0.02,4269.8,4269.7,10.50968492]
[1755778869298,0.02,4269.8,4269.7,10.20008492]
[1755778869637,0.02,4269.8,4269.7,7.196]
[1755778869638,0.022,4269.8,4269.7,7.196]
[1755778869939,0.7974,4269.8,4269.7,7.196]
[1755778870538,0.7974,4269.8,4269.7,3.0]
[1755778871436,0.022,4269.8,4269.7,7.3098]
[1755778872300,0.7974,4269.8,4269.7,7.3128]
[1755778872503,0.022,4269.8,4269.7,7.3128]
[1755778873505,0.022,4269.8,4269.7,10.62448492]
[1755778873932,0.022,4269.8,4269.7,10.31488492]
[1755778874932,0.022,4269.8,4269.7,10.62448492]
[1755778876916,0.022,4269.8,4269.7,10.31488492]
[1755778877117,0.022,4269.8,4269.7,3.1168]
[1755778877311,0.7974,4269.8,4269.7,7.3028]
[1755778877510,0.7974,4269.8,4269.7,0.1168]
[1755778877714,0.7974,4269.8,4269.7,7.3028]
[1755778878056,0.7974,4269.8,4269.7,4.3028]
[1755778878435,0.7974,4269.8,4269.7,4.32622084]
[1755778878744,0.7974,4269.8,4269.6,0.001]
[1755778878929,0.7974,4269.8,4269.7,4.185]
[1755778878930,0.3277,4269.8,4269.7,4.185]
[1755778879248,0.7974,4269.8,4269.7,4.185]
[1755778880961,0.7974,4269.8,4269.7,4.20842084]
[1755778881115,0.7974,4269.8,4269.7,4.185]
[1755778881116,0.022,4269.8,4269.7,4.185]
[1755778881311,0.022,4269.8,4269.7,6.55050576]
[1755778881513,0.022,4269.8,4269.7,4.185]
[1755778881948,0.7974,4269.8,4269.7,4.18]
[1755778882153,0.7974,4269.8,4269.6,0.001]
[1755778882352,0.4697,4269.7,4269.6,0.001]
[1755778882518,0.022,4269.8,4269.6,4.181]
[1755778883722,0.022,4269.8,4269.7,4.19]
[1755778884252,0.022,4269.8,4269.7,9.53208492]
[1755778884755,0.0212,4269.8,4269.7,7.19]
[1755778885117,0.3269,4269.8,4269.7,7.19]
[1755778885322,0.7966,4269.8,4269.7,7.19]
[1755778885517,0.7966,4269.8,4269.7,8.367]
[1755778885720,0.9566,4269.8,4269.6,0.001]
[1755778885927,0.68563207,4269.7,4269.6,0.001]
[1755778886168,0.99133207,4269.7,4269.6,4.177]
[1755778886384,1.15133207,4269.7,4269.6,0.001]
[1755778886674,1.89301678,4269.7,4268.7,0.001]
[1755778886830,1.97006357,4269.6,4268.7,0.001]
[1755778887043,0.3057,4268.8,4268.7,0.001]
[1755778887234,0.68163207,4268.8,4268.7,0.001]
[1755778887462,1.15133207,4268.8,4268.7,0.001]
[1755778887666,0.9354,4268.8,4268.7,0.001]
[1755778887833,0.16,4268.8,4268.7,0.02442633]
[1755778888145,0.4697,4269.3,4268.7,0.02442633]
[1755778888146,0.16,4269.3,4268.7,9.84321526]
[1755778888340,0.16,4269.7,4268.9,3.0]
[1755778888539,0.16,4269.7,4269.0,4.175]
[1755778888746,0.16,4269.7,4269.6,0.1168]
[1755778888945,0.68182517,4269.7,4269.6,0.1168]
[1755778889143,0.79862517,4269.7,4269.2,4.175]
[1755778889344,0.1168,4269.4,4268.9,4.176]
[1755778889563,0.3057,4269.0,4268.9,4.176]
[1755778889859,0.99152517,4269.0,4268.9,4.176]
[1755778890170,1.15152517,4269.0,4268.9,4.176]
[1755778891039,1.15152517,4269.0,4268.7,4.174]
[1755778891248,0.4657,4269.0,4268.7,4.174]
[1755778891453,0.4697,4268.9,4268.7,4.174]
[1755778891668,0.7754,4268.8,4268.7,4.174]
[1755778891969,0.9354,4268.8,4268.7,4.174]
[1755778892936,0.4657,4268.8,4268.7,4.174]
[1755778893133,0.9354,4268.8,4268.7,4.174]
[1755778894369,0.4657,4268.8,4268.7,4.174]
[1755778894549,0.16,4268.8,4268.7,4.19742633]
[1755778894749,0.16,4268.8,4268.7,4.174]
[1755778896784,0.16,4268.8,4268.7,4.4836]
[1755778897086,0.16,4269.7,4268.7,4.4836]
[1755778897444,0.16,4269.7,4269.6,0.1168]
[1755778898092,0.9416,4269.7,4269.6,0.1168]
[1755778898392,0.9416,4269.7,4269.3,5.966]
[1755778898549,0.4713,4269.6,4269.3,5.966]
[1755778898749,0.3103,4269.4,4269.3,5.966]
[1755778899080,0.3103,4269.4,4269.3,4.164]
[1755778899281,0.16,4269.7,4269.3,4.164]
[1755778899603,0.6313,4269.7,4269.3,4.164]
[1755778899789,0.3103,4269.4,4269.3,4.164]
[1755778899975,0.4713,4269.6,4269.3,4.164]
[1755778900151,0.16,4269.7,4269.3,4.164]
[1755778900152,0.16,4269.7,4269.4,0.02342249]
[1755778900584,0.16,4269.7,4269.6,0.1168]
[1755778902197,0.4703,4269.7,4269.6,0.1168]
[1755778902404,0.9416,4269.7,4269.6,0.1168]
[1755778902713,0.4703,4269.7,4269.6,0.1168]
[1755778903378,0.16,4269.7,4269.6,0.4332]
[1755778903578,0.162,4269.7,4269.6,0.4332]
[1755778903803,0.162,4269.7,4269.6,0.1168]
[1755778904711,0.162,4269.7,4269.6,0.45662139]
[1755778905802,0.162,4269.7,4269.6,0.4332]
[1755778906181,0.162,4269.7,4269.6,0.1168]
[1755778907377,0.162,4269.7,4269.6,4.3068]
[1755778907785,0.162,4269.7,4269.6,4.6232]
[1755778908377,0.1612,4269.7,4269.6,4.6232]
[1755778908784,0.1612,4269.7,4269.6,4.3068]
[1755778909532,0.1612,4269.7,4269.6,4.6232]
[1755778909883,0.1612,4269.7,4269.6,4.3068]
[1755778911939,0.1612,4269.7,4269.6,8.7652]
[1755778912491,0.1612,4269.7,4269.6,4.5752]
[1755778912809,0.1612,4269.7,4269.6,10.38426116]
[1755778913008,0.1612,4269.7,4269.6,10.36083977]
[1755778913327,0.1612,4269.7,4269.6,7.5752]
[1755778914327,0.1612,4269.7,4269.6,7.5692]
[1755778914989,0.1612,4269.7,4269.6,9.91133977]
[1755778915227,0.1612,4269.7,4269.6,10.35483977]
[1755778916329,0.1612,4269.7,4269.6,11.01483977]
[1755778916544,0.1612,4269.7,4269.6,13.48183977]
[1755778920331,0.1612,4269.7,4269.6,7.126]
[1755778920540,0.1612,4269.7,4269.6,4.126]
[1755778920838,0.1612,4269.7,4269.6,7.12813977]
[1755778921041,0.1612,4269.7,4269.6,20.21740416]
[1755778921218,0.1612,4269.7,4269.6,23.97730416]
[1755778921542,0.1612,4269.7,4269.6,23.97830416]
[1755778922032,0.1612,4269.7,4269.6,26.44530416]
[1755778922227,0.1612,4269.7,4269.6,13.35603977]
[1755778923259,0.002,4269.7,4269.6,17.54603977]
[1755778923431,0.002,4269.7,4269.6,13.35603977]
[1755778924348,0.002,4269.7,4269.6,12.59613977]
[1755778925435,1e-08,4269.8,4269.7,8.46908492]
[1755778929253,1e-08,4269.8,4269.7,12.58408492]
[1755778930965,1e-08,4269.8,4269.7,12.70088492]
[1755778932160,0.00120001,4270.2,4270.1,5.46886553]
[1755778932366,0.00120001,4270.2,4270.1,22.67012992]
[1755778932562,0.00120001,4270.2,4270.1,25.67012992]
[1755778932763,0.00120001,4270.2,4270.1,25.78692992]
[1755778933808,0.16,4271.2,4270.3,2.467]
[1755778933947,0.16,4271.2,4270.6,21.55785573]
[1755778934140,0.16,4271.2,4271.1,8.46831722]
[1755778934340,0.16,4271.2,4271.1,12.57531722]
[1755778934956,0.16,4271.2,4271.1,12.57631722]
[1755778935164,0.162,4271.3,4271.2,7.19]
[1755778935367,0.162,4271.3,4271.2,10.1912624]
[1755778936044,0.162,4271.3,4271.2,13.762]
[1755778936274,0.162,4271.3,4271.2,8.991]
[1755778936467,0.162,4271.3,4271.2,13.101]
[1755778936883,0.162,4271.3,4271.2,1.801]
[1755778937076,0.162,4271.3,4271.2,5.909]
[1755778937266,0.162,4271.3,4271.2,4.108]
[1755778938141,0.162,4271.3,4271.2,4.109]
[1755778938978,0.162,4271.3,4271.2,4.13241262]
[1755778939154,0.162,4271.3,4271.2,4.109]
[1755778940678,0.162,4271.3,4271.2,4.106]
[1755778943965,0.162,4271.3,4271.2,8.29]
[1755778944166,0.162,4271.3,4271.2,0.1168]
[1755778944368,0.162,4271.3,4271.2,4.2168]
[1755778945565,0.162,4271.3,4271.2,0.1168]
[1755778945766,0.162,4271.3,4271.2,4.098]
[1755778946303,0.162,4271.3,4271.2,4.097]
[1755778947995,0.162,4271.3,4270.4,1.801]
[1755778948195,0.162,4271.3,4270.5,4.094]
[1755778948196,0.1168,4271.1,4270.5,4.094]
[1755778948611,0.16,4271.0,4270.5,4.094]
[1755778950815,0.16,4271.0,4270.6,4.091]
[1755778951610,13.24926439,4271.0,4269.1,0.001]
[1755778951813,0.1168,4270.3,4269.7,4.09]
[1755778952004,0.16,4270.2,4269.7,4.09]
[1755778952687,0.16,4270.2,4269.6,0.1178]
[1755778952890,16.74926439,4269.9,4269.6,0.001]
[1755778953090,16.96621072,4269.9,4269.6,0.001]
[1755778953489,16.74926439,4269.9,4269.6,0.001]
[1755778953688,18.83694192,4269.9,4269.6,0.001]
[1755778953897,34.24982679,4269.8,4263.6,13.08926439]
[1755778954122,3.66,4267.7,4264.6,1.801]
[1755778954334,16.74926439,4266.9,4265.0,0.052]
[1755778954630,48.63995336,4266.9,4264.8,1.712]
[1755778954831,3.66,4266.8,4264.8,0.02]
[1755778955133,3.66,4265.9,4264.8,0.02]
[1755778956109,3.6592,4265.9,4264.8,0.02]
[1755778957727,7.8072,4265.9,4264.8,0.02]
[1755778957907,10.07694644,4265.9,4264.8,0.02]
[1755778958502,5.92894644,4265.9,4264.8,0.02]
[1755778958700,10.07494644,4265.9,4264.8,0.02]
[1755778958917,5.92894644,4265.9,4264.8,0.02]
[1755778959196,10.07394644,4265.9,4264.8,0.02]
[1755778959396,5.92894644,4265.9,4264.8,0.02]
[1755778959608,5.26974644,4265.9,4264.8,0.02]
[1755778959807,1.801,4266.0,4264.8,0.02]
[1755778960008,0.093992,4267.0,4264.8,0.02]
[1755778960009,1.895992,4267.0,4264.8,0.02]
[1755778960210,1.802,4267.0,4265.3,0.001]
[1755778960441,1.802,4267.0,4265.3,0.024445]
[1755778960613,1.802,4267.0,4265.9,0.02344171]
[1755778960809,1.802,4267.0,4265.5,1.802]
[1755778961010,1.9822,4267.0,4265.5,1.802]
[1755778962432,1.802,4267.0,4265.7,2.34427221]
[1755778962637,1.802,4267.6,4265.7,2.34427221]
[1755778962836,0.1168,4267.1,4266.5,0.1168]
[1755778963704,1.802,4267.6,4266.6,0.02343786]
[1755778963898,0.1168,4268.0,4267.0,0.1168]
[1755778964123,0.14,4268.0,4267.4,0.1168]
[1755778964348,0.14,4268.0,4267.5,0.02343292]
[1755778965143,0.14,4268.2,4267.8,0.1168]
[1755778965434,0.14,4268.2,4267.9,0.02343072]
[1755778965627,0.2568,4268.6,4267.8,0.1168]
[1755778969552,0.14,4268.6,4267.9,0.02343072]
[1755778969720,0.14,4268.6,4268.3,0.1168]
[1755778972353,0.002,4268.6,4268.3,0.1168]
[1755778974429,0.002,4268.6,4268.5,0.1168]
[1755778978944,0.002,4268.6,4268.5,4.2398]
[1755778979662,0.0012,4268.6,4268.5,4.2398]
[1755778979965,0.0012,4268.6,4268.5,0.1168]
[1755778980142,0.0012,4268.6,4268.5,4.2348]
[1755778980478,0.0012,4268.6,4267.8,1.802]
[1755778980680,0.0012,4268.6,4268.1,0.1168]
[1755778980902,0.0012,4268.6,4267.8,1.9188]
[1755778981126,0.1168,4268.4,4267.8,1.9188]
[1755778981792,0.0012,4268.6,4268.2,0.1168]
[1755778982095,0.0012,4268.6,4267.8,1.802]
[1755778982096,0.0012,4268.6,4268.5,0.1168]
[1755778982715,0.0012,4268.6,4268.5,0.14022743]
[1755778983308,0.0012,4268.6,4268.5,0.1168]
[1755778986886,0.0012,4268.6,4268.5,11.44222743]
[1755778987095,0.0012,4268.6,4268.5,13.76154335]
[1755778988277,0.0012,4268.6,4268.5,14.42154335]
[1755778988984,0.0012,4268.6,4268.5,14.42254335]
[1755778992122,0.0012,4268.6,4268.5,7.108]
[1755778992479,0.0012,4268.6,4268.5,0.001]
[1755778992918,0.0012,4268.6,4268.5,4.106]
[1755778994192,0.0012,4268.6,4268.5,0.001]
[1755778994393,0.0012,4268.6,4268.5,4.104]
[1755778997132,0.0012,4268.6,4268.5,7.104]
[1755778999435,0.16,4268.8,4268.7,3.00263358]
[1755778999734,0.16,4268.8,4268.7,7.82805991]
[1755778999939,0.16,4268.8,4268.7,7.80463358]
[1755779000303,0.16,4268.8,4268.7,10.27563358]
[1755779000503,0.16,4268.8,4268.7,7.80463358]
[1755779000916,0.16,4268.8,4268.7,11.90463358]
[1755779001326,0.16,4268.8,4268.7,11.24263358]
[1755779001839,0.16,4268.8,4268.7,11.35943358]
[1755779003147,0.16,4268.8,4268.7,12.01943358]
[1755779003446,0.1592,4268.8,4268.7,12.01943358]
[1755779004739,0.1592,4268.8,4268.7,7.92143358]
[1755779004940,0.1592,4268.8,4268.7,12.01443358]
[1755779005837,0.002,4269.1,4269.0,3.00246896]
[1755779006049,0.002,4269.1,4269.0,23.18273335]
[1755779006271,0.002,4269.1,4269.0,23.29953335]
[1755779006682,0.002,4269.1,4269.0,18.54853335]
[1755779006999,0.002,4269.1,4269.0,22.63853335]
[1755779007335,0.002,4269.1,4269.0,18.54853335]
[1755779007778,0.002,4269.1,4269.0,22.81623852]
[1755779008878,0.002,4269.1,4269.0,18.72523852]
[1755779009079,0.002,4269.1,4269.0,22.81623852]
[1755779009581,0.002,4269.1,4269.0,18.72523852]
[1755779009749,0.002,4269.1,4269.0,22.81323852]
[1755779013199,0.002,4269.1,4269.0,23.47323852]
[1755779015492,0.002,4269.1,4269.0,5.63597413]
[1755779015657,0.002,4269.1,4269.0,9.72397413]
[1755779015859,0.002,4269.1,4269.0,5.63597413]
[1755779016173,0.002,4269.1,4269.0,9.72397413]
[1755779018195,0.002,4269.1,4269.0,0.1168]
[1755779018499,0.002,4269.1,4269.0,4.2038]
[1755779018691,0.002,4269.1,4269.0,7.2038]
[1755779019083,0.002,4269.1,4269.0,3.1168]
[1755779019292,0.002,4269.1,4269.0,0.1168]
[1755779019591,0.002,4269.1,4269.0,4.2038]
[1755779020482,0.07705225,4269.9,4269.0,4.2038]
[1755779020683,0.002,4270.0,4269.8,0.1168]
[1755779020883,0.002,4270.0,4269.9,4.087]
[1755779022589,0.002,4270.0,4269.9,4.11041975]
[1755779023169,0.002,4270.0,4269.9,7.11041975]
[1755779023367,0.002,4270.0,4269.9,9.42897522]
[1755779023776,0.002,4270.0,4269.9,9.54577522]
[1755779026171,0.02,4270.8,4270.0,3.0]
[1755779026370,0.02,4270.8,4270.7,5.34153651]
[1755779026565,0.02,4270.8,4270.7,11.34633651]
[1755779026993,0.02,4270.8,4270.7,9.0048]
[1755779027195,0.02,4270.8,4270.7,11.34633651]
[1755779027471,0.0192,4270.8,4270.7,9.0048]
[1755779027885,0.0192,4270.8,4270.7,1.9178]
[1755779028405,0.0192,4270.8,4270.7,6.0048]
[1755779029711,0.0192,4270.8,4270.7,9.0048]
[1755779031729,0.0192,4270.8,4270.7,13.1948]
[1755779032436,0.0192,4270.8,4270.7,10.1938]
[1755779034526,0.0035,4270.8,4270.7,9.0038]
[1755779034706,0.0035,4270.8,4270.7,11.34533651]
[1755779034903,0.0035,4270.8,4270.7,4.9178]
[1755779035104,0.0035,4270.8,4270.7,9.0038]
[1755779035712,0.0035,4270.8,4270.7,11.34533651]
[1755779037116,0.0035,4270.8,4270.7,9.0038]
[1755779039349,0.0035,4270.8,4270.7,11.34533651]
[1755779039648,0.0035,4270.8,4270.7,9.0028]
[1755779040511,0.0035,4270.8,4270.7,4.9178]
[1755779040712,0.0035,4270.8,4270.7,9.0028]
[1755779041350,0.0035,4270.8,4270.7,4.9178]
[1755779041627,0.0035,4270.8,4270.7,9.0028]
[1755779042724,0.0055,4270.8,4270.7,9.0028]
[1755779043158,0.0055,4270.8,4270.7,4.9178]
[1755779043550,0.0055,4270.8,4270.7,9.0028]
[1755779045430,0.0055,4270.8,4270.7,6.0018]
[1755779046365,0.0055,4270.8,4270.7,24.4326009]
[1755779046866,0.0055,4270.8,4270.7,9.0018]
[1755779047063,0.0055,4270.8,4270.7,11.34333651]
[1755779047231,0.0055,4270.8,4270.7,24.4326009]
[1755779047430,0.0055,4270.8,4270.7,15.53333651]
[1755779048843,0.0055,4270.8,4270.7,11.44933651]
[1755779049030,0.0055,4270.8,4270.7,15.53333651]
[1755779049227,0.0055,4270.8,4270.7,28.6226009]
[1755779049433,0.0055,4270.8,4270.7,29.2826009]
[1755779050361,0.0055,4270.8,4270.7,31.7536009]
[1755779050565,0.0055,4270.8,4270.7,29.2826009]
[1755779050965,0.0047,4270.8,4270.7,25.1986009]
[1755779051145,0.0047,4270.8,4270.7,29.2816009]
[1755779052428,0.002,4271.3,4270.7,29.2816009]
[1755779052634,0.002,4271.3,4271.2,15.54732679]
[1755779052853,0.022,4271.8,4271.2,15.54732679]
[1755779052854,0.022,4271.8,4271.6,3.00104316]
[1755779053064,0.022,4271.8,4271.6,4.801]
[1755779053265,0.022,4271.8,4271.6,9.0008]
[1755779053572,0.022,4271.8,4271.6,4.9178]
[1755779053737,0.022,4271.8,4271.6,1.9178]
[1755779054068,0.022,4271.8,4271.6,6.0008]
[1755779054272,0.022,4271.8,4271.6,1.9178]
[1755779054484,0.022,4271.8,4271.6,5.884]
[1755779056685,0.022,4271.8,4271.6,1.801]
[1755779056882,0.022,4271.8,4271.6,5.884]
[1755779057887,0.022,4271.8,4271.6,1.801]
[1755779058064,0.022,4271.8,4271.6,5.884]
[1755779058394,0.022,4271.8,4271.6,1.801]
[1755779058585,0.022,4271.8,4271.6,5.883]
[1755779061474,0.022,4271.8,4271.6,5.9998]
[1755779061661,0.022,4271.8,4271.6,11.34084316]
[1755779062884,0.022,4271.8,4271.6,24.43010755]
[1755779063778,0.022,4271.8,4271.6,25.09010755]
[1755779065302,0.022,4271.8,4271.6,21.00810755]
[1755779065503,0.022,4271.8,4271.6,25.08910755]
[1755779067407,0.002,4272.2,4271.9,0.66]
[1755779067607,0.002,4272.2,4272.1,19.09003356]
[1755779067909,0.002,4272.2,4272.1,19.20683356]
[1755779068280,0.002,4272.2,4272.1,22.62783356]
[1755779068487,0.002,4272.2,4272.1,9.53856917]
[1755779070188,0.002,4272.2,4272.1,9.53756917]
[1755779070524,0.002,4272.2,4272.1,3.1168]
[1755779070683,0.002,4272.2,4272.1,7.1968]
[1755779071511,0.002,4272.2,4272.1,9.53756917]
[1755779072581,0.002,4272.2,4272.1,10.19756917]
[1755779073990,0.002,4272.6,4272.5,6.00055002]
[1755779074210,0.002,4272.6,4272.5,25.08561441]
[1755779074782,0.0012,4272.6,4272.5,7.25735002]
[1755779075003,0.0012,4272.6,4272.5,11.33635002]
[1755779075914,0.0012,4272.6,4272.5,8.9958]
[1755779078917,0.0012,4272.6,4272.5,13.1858]
[1755779079132,0.0012,4272.6,4272.5,15.52635002]
[1755779079893,0.0012,4272.6,4272.5,13.1858]
[1755779080094,0.0012,4272.6,4272.5,13.1848]
[1755779080627,0.0012,4272.6,4272.5,15.52535002]
[1755779080791,0.0012,4272.6,4272.5,13.1848]
[1755779085157,0.0012,4272.6,4272.5,15.52535002]
[1755779085863,0.0012,4272.6,4272.5,13.1848]
[1755779086050,0.0012,4272.6,4272.5,15.52535002]
[1755779086392,0.0012,4272.6,4272.5,21.56795921]
[1755779088280,0.0012,4272.6,4272.5,22.22795921]
[1755779089179,0.0012,4272.6,4272.5,21.56595921]
[1755779092608,0.0012,4272.6,4272.5,22.22595921]
[1755779093899,0.002,4273.1,4272.7,2.34044047]
[1755779094096,0.002,4273.1,4272.7,10.60424047]
[1755779094407,0.002,4273.1,4272.7,11.26424047]
[1755779095682,0.002,4273.1,4272.7,14.26424047]
[1755779096286,0.002,4273.1,4272.8,6.00038569]
[1755779096525,0.002,4273.1,4272.8,6.11718569]
[1755779097396,0.002,4273.5,4273.4,6.00005709]
[1755779097605,0.02,4273.8,4273.7,2.33989283]
[1755779097781,0.02,4273.8,4273.7,9.53077297]
[1755779098120,0.02,4273.8,4273.7,9.64757297]
[1755779098716,0.0192,4273.8,4273.7,5.57357297]
[1755779098883,0.0192,4273.8,4273.7,9.64757297]
[1755779099222,0.0192,4273.8,4273.7,10.30757297]
[1755779099914,0.02,4274.8,4274.4,2.33950247]
[1755779100080,0.02,4274.8,4274.7,6.04260919]
[1755779100279,0.02,4274.8,4274.5,5.874]
[1755779100280,0.02,4274.8,4274.5,1.8]
[1755779100707,0.02,4274.8,4274.6,4.074]
[1755779100882,0.02,4274.8,4274.7,0.1168]
[1755779101583,0.02,4274.8,4274.7,5.45614545]
[1755779102010,0.02,4274.8,4274.7,2.45614545]
[1755779102226,0.02,4274.8,4274.7,9.53014545]
[1755779102381,0.02,4274.8,4274.7,15.74660793]
[1755779104510,0.02,4274.8,4274.7,16.28980793]